[Event "Titled Tuesday Blitz May 2 Early 2023"]
[White "Alinasab, Mobina"]
[Black "Hayrapetyan, Hovik"]
[WhiteFideId "12528897"]
[BlackFideId "13302639"]
[WhiteElo "2149"]
[BlackElo "2348"]
[Result "0-1"]
[Round "09"]
[TimeControl "180+2"]
[Date "2023.05.02"]
[WhiteClock "0:00:02"]
[BlackClock "0:01:11"]

1. Nf3 {[%clk 0:03:00]}  d5 {[%clk 0:02:53]} 2. g3 {[%clk 0:03:00]}  Nf6 {[%clk 0:02:53]} 3. Bg2 {[%clk 0:03:00]}  Nc6 {[%clk 0:02:42]} 4. d4 {[%clk 0:02:58]}  Bf5 {[%clk 0:02:42]} 5. O-O {[%clk 0:02:55]}  Nb4 {[%clk 0:02:42]} 6. Na3 {[%clk 0:02:54]}  e6 {[%clk 0:02:41]} 7. c3 {[%clk 0:02:55]}  Nc6 {[%clk 0:02:40]} 8. Nc2 {[%clk 0:02:55]}  h6 {[%clk 0:02:40]} 9. b3 {[%clk 0:02:54]}  Bd6 {[%clk 0:02:36]} 10. Bb2 {[%clk 0:02:55]}  O-O {[%clk 0:02:36]} 11. c4 {[%clk 0:02:55]}  a5 {[%clk 0:02:36]} 12. Ne5 {[%clk 0:02:38]}  Ne7 {[%clk 0:02:06]} 13. c5 {[%clk 0:02:35]}  Bxe5 {[%clk 0:02:04]} 14. dxe5 {[%clk 0:02:36]}  Nd7 {[%clk 0:02:03]} 15. Nd4 {[%clk 0:01:19]}  Bh7 {[%clk 0:01:55]} 16. Rc1 {[%clk 0:01:18]}  Nc6 {[%clk 0:01:47]} 17. Nxc6 {[%clk 0:01:14]}  bxc6 {[%clk 0:01:48]} 18. Qd4 {[%clk 0:01:12]}  f6 {[%clk 0:01:44]} 19. exf6 {[%clk 0:01:05]}  Qxf6 {[%clk 0:01:45]} 20. Qxf6 {[%clk 0:00:53]}  gxf6 {[%clk 0:01:46]} 21. f4 {[%clk 0:00:44]}  a4 {[%clk 0:01:43]} 22. b4 {[%clk 0:00:41]}  Kf7 {[%clk 0:01:39]} 23. a3 {[%clk 0:00:40]}  h5 {[%clk 0:01:38]} 24. Rcd1 {[%clk 0:00:35]}  Rfd8 {[%clk 0:01:36]} 25. Bd4 {[%clk 0:00:33]}  Bf5 {[%clk 0:01:35]} 26. Rfe1 {[%clk 0:00:30]}  h4 {[%clk 0:01:30]} 27. Kf2 {[%clk 0:00:29]}  hxg3+ {[%clk 0:01:29]} 28. hxg3 {[%clk 0:00:30]}  e5 {[%clk 0:01:28]} 29. fxe5 {[%clk 0:00:23]}  fxe5 {[%clk 0:01:29]} 30. Bc3 {[%clk 0:00:23]}  Nf6 {[%clk 0:01:29]} 31. Kg1 {[%clk 0:00:20]}  Ke6 {[%clk 0:01:29]} 32. Rf1 {[%clk 0:00:18]}  Ne4 {[%clk 0:01:27]} 33. Bxe4 {[%clk 0:00:14]}  Bxe4 {[%clk 0:01:28]} 34. Kf2 {[%clk 0:00:13]}  Rh8 {[%clk 0:01:27]} 35. Ke1 {[%clk 0:00:11]}  d4 {[%clk 0:01:27]} 36. Bd2 {[%clk 0:00:10]}  Rh2 {[%clk 0:01:27]} 37. Rg1 {[%clk 0:00:08]}  Rf8 {[%clk 0:01:21]} 38. Bg5 {[%clk 0:00:08]}  Rff2 {[%clk 0:01:18]} 39. Rd2 {[%clk 0:00:08]}  Kf5 {[%clk 0:01:15]} 40. Bd8 {[%clk 0:00:05]}  d3 {[%clk 0:01:14]} 41. Bxc7 {[%clk 0:00:05]}  Rxe2+ {[%clk 0:01:14]} 42. Rxe2 {[%clk 0:00:05]}  Rxe2+ {[%clk 0:01:14]} 43. Kd1 {[%clk 0:00:04]}  Bf3 {[%clk 0:01:14]} 44. Kc1 {[%clk 0:00:02]}  d2+ {[%clk 0:01:11]} 45. Kc2 {[%clk 0:00:02]}  Re1 {[%clk 0:01:11]} 0-1


[Site "https://www.chess.com"]

[Event "Titled Tuesday Blitz May 2 Early 2023"]
[White "Remizov, Yaroslav"]
[Black "Mrudul Dehankar"]
[WhiteFideId "34134015"]
[BlackFideId "25096990"]
[WhiteElo "2412"]
[BlackElo "2139"]
[Result "1-0"]
[Round "09"]
[TimeControl "180+2"]
[Date "2023.05.02"]
[WhiteClock "0:01:13"]
[BlackClock "0:00:07"]

1. e4 {[%clk 0:02:32]}  c6 {[%clk 0:02:38]} 2. d4 {[%clk 0:02:31]}  d5 {[%clk 0:02:36]} 3. Nc3 {[%clk 0:02:32]}  dxe4 {[%clk 0:02:34]} 4. Nxe4 {[%clk 0:02:33]}  Nf6 {[%clk 0:02:33]} 5. Nxf6+ {[%clk 0:02:34]}  exf6 {[%clk 0:02:34]} 6. Bd3 {[%clk 0:02:34]}  Bd6 {[%clk 0:02:32]} 7. Qh5 {[%clk 0:02:34]}  Qe7+ {[%clk 0:01:41]} 8. Ne2 {[%clk 0:02:33]}  f5 {[%clk 0:01:41]} 9. Bg5 {[%clk 0:02:27]}  Qc7 {[%clk 0:01:39]} 10. O-O-O {[%clk 0:02:25]}  O-O {[%clk 0:01:36]} 11. g4 {[%clk 0:02:18]}  g6 {[%clk 0:01:35]} 12. Qh6 {[%clk 0:02:18]}  Re8 {[%clk 0:01:29]} 13. gxf5 {[%clk 0:02:13]}  Bxf5 {[%clk 0:01:12]} 14. Bxf5 {[%clk 0:02:05]}  Rxe2 {[%clk 0:01:11]} 15. Bd3 {[%clk 0:02:03]}  Re8 {[%clk 0:01:05]} 16. f4 {[%clk 0:01:54]}  Bf8 {[%clk 0:00:47]} 17. Qh4 {[%clk 0:01:53]}  f5 {[%clk 0:00:39]} 18. Rhe1 {[%clk 0:01:22]}  Nd7 {[%clk 0:00:36]} 19. Bc4+ {[%clk 0:01:22]}  Kh8 {[%clk 0:00:21]} 20. Bf7 {[%clk 0:01:21]}  Rxe1 {[%clk 0:00:20]} 21. Rxe1 {[%clk 0:01:20]}  Kg7 {[%clk 0:00:16]} 22. Be8 {[%clk 0:01:16]}  Nb6 {[%clk 0:00:07]} 23. Bf6+ {[%clk 0:01:14]}  Kg8 {[%clk 0:00:07]} 24. Bxg6 {[%clk 0:01:13]} 1-0


[Site "https://www.chess.com"]

[Event "Titled Tuesday Blitz May 2 Early 2023"]
[White "Vlassov, Nikolai"]
[Black "Siva Mahadevan"]
[WhiteFideId "4103360"]
[BlackFideId "25043153"]
[WhiteElo "2324"]
[BlackElo "2249"]
[Result "0-1"]
[Round "09"]
[TimeControl "180+2"]
[Date "2023.05.02"]
[WhiteClock "0:00:15"]
[BlackClock "0:00:22"]

1. e4 {[%clk 0:03:00]}  c5 {[%clk 0:02:59]} 2. c3 {[%clk 0:03:00]}  e5 {[%clk 0:02:59]} 3. Nf3 {[%clk 0:03:00]}  Nc6 {[%clk 0:02:59]} 4. Bc4 {[%clk 0:03:00]}  Be7 {[%clk 0:02:59]} 5. O-O {[%clk 0:02:59]}  d6 {[%clk 0:03:00]} 6. d4 {[%clk 0:02:57]}  cxd4 {[%clk 0:03:00]} 7. cxd4 {[%clk 0:02:57]}  exd4 {[%clk 0:03:01]} 8. Nxd4 {[%clk 0:02:49]}  Nf6 {[%clk 0:03:01]} 9. Nc3 {[%clk 0:02:49]}  O-O {[%clk 0:03:01]} 10. Bf4 {[%clk 0:02:46]}  Ne5 {[%clk 0:02:57]} 11. Bb3 {[%clk 0:02:44]}  Re8 {[%clk 0:02:57]} 12. Re1 {[%clk 0:02:41]}  Bf8 {[%clk 0:02:55]} 13. Qd2 {[%clk 0:02:34]}  Bd7 {[%clk 0:02:45]} 14. Rad1 {[%clk 0:02:33]}  a6 {[%clk 0:02:45]} 15. Bg5 {[%clk 0:02:29]}  h6 {[%clk 0:02:42]} 16. Bh4 {[%clk 0:02:26]}  Ng6 {[%clk 0:02:38]} 17. Bg3 {[%clk 0:02:25]}  Nh5 {[%clk 0:02:33]} 18. Nf5 {[%clk 0:02:20]}  Nxg3 {[%clk 0:02:31]} 19. hxg3 {[%clk 0:02:19]}  Bxf5 {[%clk 0:02:20]} 20. exf5 {[%clk 0:02:19]}  Ne5 {[%clk 0:02:21]} 21. Nd5 {[%clk 0:02:13]}  Rc8 {[%clk 0:02:20]} 22. Re4 {[%clk 0:02:04]}  Nc6 {[%clk 0:02:09]} 23. Rde1 {[%clk 0:01:58]}  Re5 {[%clk 0:02:08]} 24. f6 {[%clk 0:01:51]}  gxf6 {[%clk 0:01:55]} 25. Qf4 {[%clk 0:01:41]}  Bg7 {[%clk 0:01:55]} 26. Ne3 {[%clk 0:01:30]}  Ne7 {[%clk 0:01:37]} 27. Rd1 {[%clk 0:01:14]}  Qb6 {[%clk 0:01:27]} 28. Red4 {[%clk 0:00:54]}  d5 {[%clk 0:01:16]} 29. Nxd5 {[%clk 0:00:47]}  Nxd5 {[%clk 0:01:17]} 30. Rxd5 {[%clk 0:00:46]}  Re2 {[%clk 0:00:56]} 31. Rd7 {[%clk 0:00:42]}  Rf8 {[%clk 0:00:56]} 32. Qf3 {[%clk 0:00:39]}  Rxb2 {[%clk 0:00:55]} 33. Rxb7 {[%clk 0:00:37]}  Rxb3 {[%clk 0:00:45]} 34. Rxb6 {[%clk 0:00:33]}  Rxb6 {[%clk 0:00:46]} 35. Qd5 {[%clk 0:00:25]}  Re8 {[%clk 0:00:45]} 36. Rc1 {[%clk 0:00:23]}  Rbe6 {[%clk 0:00:45]} 37. Rc7 {[%clk 0:00:23]}  Bf8 {[%clk 0:00:44]} 38. Rd7 {[%clk 0:00:21]}  Kg7 {[%clk 0:00:41]} 39. g4 {[%clk 0:00:20]}  Kg8 {[%clk 0:00:33]} 40. g3 {[%clk 0:00:20]}  Kg7 {[%clk 0:00:32]} 41. Kg2 {[%clk 0:00:20]}  Kg8 {[%clk 0:00:32]} 42. a4 {[%clk 0:00:20]}  Kg7 {[%clk 0:00:33]} 43. a5 {[%clk 0:00:21]}  Kg8 {[%clk 0:00:32]} 44. Ra7 {[%clk 0:00:21]}  Bb4 {[%clk 0:00:29]} 45. Qc4 {[%clk 0:00:18]}  Bxa5 {[%clk 0:00:27]} 46. Rxa6 {[%clk 0:00:18]}  Rxa6 {[%clk 0:00:22]} 47. Qxa6 {[%clk 0:00:18]}  Bd8 {[%clk 0:00:23]} 48. Qc6 {[%clk 0:00:18]}  Kf8 {[%clk 0:00:22]} 49. Kh3 {[%clk 0:00:17]}  Be7 {[%clk 0:00:22]} 50. f4 {[%clk 0:00:17]}  Rd8 {[%clk 0:00:23]} 51. Qc2 {[%clk 0:00:16]}  Kg7 {[%clk 0:00:23]} 52. Kh4 {[%clk 0:00:15]}  f5+ {[%clk 0:00:22]} 53. Kh3 {[%clk 0:00:15]}  fxg4+ {[%clk 0:00:22]} 54. Kxg4 {[%clk 0:00:16]}  Rd6 {[%clk 0:00:23]} 55. Kf3 {[%clk 0:00:15]}  Re6 {[%clk 0:00:22]} 56. Qc5 {[%clk 0:00:15]}  Bxc5 {[%clk 0:00:22]} 0-1


[Site "https://www.chess.com"]

[Event "Titled Tuesday Blitz May 2 Early 2023"]
[White "Gritsenko, Nikolai"]
[Black "Leenhouts, Koen"]
[WhiteFideId "14112493"]
[BlackFideId "1008439"]
[WhiteElo "2389"]
[BlackElo "2409"]
[Result "0-1"]
[Round "09"]
[TimeControl "180+2"]
[Date "2023.05.02"]
[WhiteClock "0:00:15"]
[BlackClock "0:00:19"]

1. d4 {[%clk 0:03:00]}  Nf6 {[%clk 0:02:59]} 2. Bg5 {[%clk 0:03:00]}  d5 {[%clk 0:02:55]} 3. Nd2 {[%clk 0:03:00]}  Bf5 {[%clk 0:02:46]} 4. Bxf6 {[%clk 0:02:59]}  exf6 {[%clk 0:02:43]} 5. e3 {[%clk 0:02:59]}  Bd6 {[%clk 0:02:42]} 6. Ngf3 {[%clk 0:02:58]}  O-O {[%clk 0:02:41]} 7. c4 {[%clk 0:02:58]}  dxc4 {[%clk 0:02:35]} 8. Bxc4 {[%clk 0:02:58]}  c5 {[%clk 0:02:34]} 9. O-O {[%clk 0:02:55]}  Nc6 {[%clk 0:02:32]} 10. dxc5 {[%clk 0:02:54]}  Bxc5 {[%clk 0:02:30]} 11. Rc1 {[%clk 0:02:53]}  Qe7 {[%clk 0:02:29]} 12. a3 {[%clk 0:02:43]}  Rfd8 {[%clk 0:02:27]} 13. Qe2 {[%clk 0:02:12]}  Ne5 {[%clk 0:02:23]} 14. Nxe5 {[%clk 0:02:08]}  fxe5 {[%clk 0:02:20]} 15. Rfd1 {[%clk 0:01:59]}  Rac8 {[%clk 0:02:17]} 16. Qf3 {[%clk 0:01:45]}  Bg6 {[%clk 0:01:53]} 17. b4 {[%clk 0:01:40]}  Bb6 {[%clk 0:01:46]} 18. Bd5 {[%clk 0:00:57]}  Rxc1 {[%clk 0:01:34]} 19. Rxc1 {[%clk 0:00:55]}  e4 {[%clk 0:01:30]} 20. Nxe4 {[%clk 0:00:55]}  Rxd5 {[%clk 0:01:27]} 21. Nf6+ {[%clk 0:00:55]}  Qxf6 {[%clk 0:01:23]} 22. Qxd5 {[%clk 0:00:53]}  h5 {[%clk 0:01:19]} 23. Qxb7 {[%clk 0:00:47]}  h4 {[%clk 0:01:10]} 24. h3 {[%clk 0:00:45]}  Kh7 {[%clk 0:01:01]} 25. Qf3 {[%clk 0:00:40]}  Qb2 {[%clk 0:00:31]} 26. Rc4 {[%clk 0:00:31]}  Qa1+ {[%clk 0:00:25]} 27. Kh2 {[%clk 0:00:25]}  Bd8 {[%clk 0:00:25]} 28. e4 {[%clk 0:00:19]}  Qe5+ {[%clk 0:00:22]} 29. Kh1 {[%clk 0:00:18]}  Bc7 {[%clk 0:00:20]} 30. Kg1 {[%clk 0:00:15]}  Qa1+ {[%clk 0:00:19]} 0-1


[Site "https://www.chess.com"]

[Event "Titled Tuesday Blitz May 2 Early 2023"]
[White "Bolourchifard, Farzad"]
[Black "Goncalves, Davi Sulzbacher"]
[WhiteFideId "12510084"]
[BlackFideId "2154510"]
[WhiteElo "2317"]
[BlackElo "2182"]
[Result "1-0"]
[Round "09"]
[TimeControl "180+2"]
[Date "2023.05.02"]
[WhiteClock "0:01:07"]
[BlackClock "0:00:01"]

1. d4 {[%clk 0:03:00]}  Nf6 {[%clk 0:02:59]} 2. Nf3 {[%clk 0:03:01]}  g6 {[%clk 0:02:59]} 3. Bg5 {[%clk 0:03:00]}  Bg7 {[%clk 0:02:59]} 4. e3 {[%clk 0:03:01]}  O-O {[%clk 0:02:59]} 5. Be2 {[%clk 0:03:01]}  b6 {[%clk 0:02:59]} 6. O-O {[%clk 0:03:01]}  Bb7 {[%clk 0:02:59]} 7. c4 {[%clk 0:03:00]}  d5 {[%clk 0:02:58]} 8. Nc3 {[%clk 0:02:59]}  Ne4 {[%clk 0:02:51]} 9. Bh4 {[%clk 0:02:56]}  Nxc3 {[%clk 0:02:48]} 10. bxc3 {[%clk 0:02:56]}  c5 {[%clk 0:02:35]} 11. a4 {[%clk 0:02:51]}  dxc4 {[%clk 0:02:27]} 12. Bxc4 {[%clk 0:02:51]}  Nc6 {[%clk 0:02:27]} 13. Qe2 {[%clk 0:02:46]}  Qc7 {[%clk 0:02:23]} 14. Ba6 {[%clk 0:02:45]}  Rac8 {[%clk 0:02:06]} 15. Bg3 {[%clk 0:02:45]}  Qd7 {[%clk 0:02:05]} 16. Rfd1 {[%clk 0:02:20]}  cxd4 {[%clk 0:02:02]} 17. cxd4 {[%clk 0:02:13]}  Na5 {[%clk 0:01:50]} 18. Bxb7 {[%clk 0:02:07]}  Qxb7 {[%clk 0:01:49]} 19. Be5 {[%clk 0:02:07]}  Bh6 {[%clk 0:01:26]} 20. h4 {[%clk 0:01:51]}  Qe4 {[%clk 0:01:14]} 21. Qa6 {[%clk 0:01:43]}  Rc2 {[%clk 0:00:52]} 22. Qxa7 {[%clk 0:01:16]}  Nc4 {[%clk 0:00:10]} 23. Qxe7 {[%clk 0:01:09]}  Nxe5 {[%clk 0:00:01]} 24. Qxe5 {[%clk 0:01:07]} 1-0


[Site "https://www.chess.com"]

[Event "Titled Tuesday Blitz May 2 Early 2023"]
[White "Ibadov, Dashgyn"]
[Black "Kucuksari, Kaan"]
[WhiteFideId "24107514"]
[BlackFideId "6380166"]
[WhiteElo "2208"]
[BlackElo "2364"]
[Result "1-0"]
[Round "09"]
[TimeControl "180+2"]
[Date "2023.05.02"]
[WhiteClock "0:00:56"]
[BlackClock "0:00:23"]

1. d4 {[%clk 0:03:00]}  f5 {[%clk 0:02:58]} 2. c4 {[%clk 0:02:49]}  Nf6 {[%clk 0:02:57]} 3. Nc3 {[%clk 0:02:49]}  e6 {[%clk 0:02:57]} 4. Nf3 {[%clk 0:02:44]}  Bb4 {[%clk 0:02:57]} 5. Bd2 {[%clk 0:02:40]}  O-O {[%clk 0:02:48]} 6. e3 {[%clk 0:02:39]}  b6 {[%clk 0:02:48]} 7. Bd3 {[%clk 0:02:39]}  Bb7 {[%clk 0:02:48]} 8. O-O {[%clk 0:02:34]}  d6 {[%clk 0:02:43]} 9. a3 {[%clk 0:02:34]}  Bxc3 {[%clk 0:02:42]} 10. Bxc3 {[%clk 0:02:35]}  Nbd7 {[%clk 0:02:42]} 11. Qc2 {[%clk 0:02:23]}  Ne4 {[%clk 0:02:40]} 12. Nd2 {[%clk 0:02:16]}  Nxd2 {[%clk 0:02:34]} 13. Bxd2 {[%clk 0:02:11]}  Nf6 {[%clk 0:02:30]} 14. f3 {[%clk 0:02:10]}  Qe7 {[%clk 0:02:22]} 15. Rae1 {[%clk 0:02:02]}  Kh8 {[%clk 0:02:17]} 16. b4 {[%clk 0:01:57]}  Rf7 {[%clk 0:02:06]} 17. e4 {[%clk 0:01:51]}  fxe4 {[%clk 0:02:02]} 18. fxe4 {[%clk 0:01:52]}  e5 {[%clk 0:02:00]} 19. d5 {[%clk 0:01:52]}  Raf8 {[%clk 0:01:57]} 20. c5 {[%clk 0:01:41]}  bxc5 {[%clk 0:01:41]} 21. bxc5 {[%clk 0:01:42]}  Nd7 {[%clk 0:01:36]} 22. c6 {[%clk 0:01:41]}  Bxc6 {[%clk 0:01:25]} 23. dxc6 {[%clk 0:01:32]}  Nc5 {[%clk 0:01:24]} 24. Be3 {[%clk 0:01:29]}  Ne6 {[%clk 0:01:18]} 25. Rxf7 {[%clk 0:01:21]}  Rxf7 {[%clk 0:01:14]} 26. Rf1 {[%clk 0:01:22]}  Rxf1+ {[%clk 0:01:12]} 27. Bxf1 {[%clk 0:01:23]}  g6 {[%clk 0:01:05]} 28. Bxa7 {[%clk 0:01:22]}  Kg7 {[%clk 0:01:03]} 29. Be3 {[%clk 0:01:21]}  Qe8 {[%clk 0:01:02]} 30. a4 {[%clk 0:01:19]}  Qa8 {[%clk 0:01:02]} 31. Qc4 {[%clk 0:01:06]}  Nd8 {[%clk 0:01:01]} 32. Qa6 {[%clk 0:01:05]}  Qb8 {[%clk 0:00:58]} 33. Qa7 {[%clk 0:01:04]}  Qxa7 {[%clk 0:00:46]} 34. Bxa7 {[%clk 0:01:05]}  Nxc6 {[%clk 0:00:47]} 35. Be3 {[%clk 0:01:05]}  Na5 {[%clk 0:00:33]} 36. Bd2 {[%clk 0:01:02]}  Nb3 {[%clk 0:00:31]} 37. Bc3 {[%clk 0:01:02]}  Kf6 {[%clk 0:00:30]} 38. a5 {[%clk 0:01:02]}  Nc5 {[%clk 0:00:29]} 39. a6 {[%clk 0:00:57]}  Nxa6 {[%clk 0:00:24]} 40. Bxa6 {[%clk 0:00:58]}  c6 {[%clk 0:00:24]} 41. Bb7 {[%clk 0:00:58]}  d5 {[%clk 0:00:22]} 42. exd5 {[%clk 0:00:56]}  cxd5 {[%clk 0:00:23]} 43. Bxd5 {[%clk 0:00:56]} 1-0


[Site "https://www.chess.com"]

[Event "Titled Tuesday Blitz May 2 Early 2023"]
[White "Florescu, Codrut-Constantin"]
[Black "Garv Gaur"]
[WhiteFideId "1202200"]
[BlackFideId "45030839"]
[WhiteElo "2191"]
[BlackElo "2068"]
[Result "0-1"]
[Round "09"]
[TimeControl "180+2"]
[Date "2023.05.02"]
[WhiteClock "0:00:12"]
[BlackClock "0:00:43"]

1. e4 {[%clk 0:02:59]}  g6 {[%clk 0:02:58]} 2. d4 {[%clk 0:02:58]}  Bg7 {[%clk 0:02:57]} 3. Nc3 {[%clk 0:02:58]}  d5 {[%clk 0:02:57]} 4. exd5 {[%clk 0:02:57]}  Nf6 {[%clk 0:02:57]} 5. Bc4 {[%clk 0:02:54]}  Nbd7 {[%clk 0:02:57]} 6. Bb3 {[%clk 0:02:50]}  Nb6 {[%clk 0:02:56]} 7. Qf3 {[%clk 0:02:50]}  Bg4 {[%clk 0:02:55]} 8. Qg3 {[%clk 0:02:48]}  Bf5 {[%clk 0:02:56]} 9. Bg5 {[%clk 0:02:11]}  Nfxd5 {[%clk 0:02:50]} 10. Nge2 {[%clk 0:02:07]}  O-O {[%clk 0:02:41]} 11. O-O {[%clk 0:02:06]}  c6 {[%clk 0:02:40]} 12. Qh4 {[%clk 0:02:03]}  Re8 {[%clk 0:02:38]} 13. Rad1 {[%clk 0:02:02]}  Qd7 {[%clk 0:02:36]} 14. Ng3 {[%clk 0:02:01]}  Nxc3 {[%clk 0:02:27]} 15. bxc3 {[%clk 0:01:58]}  Be6 {[%clk 0:02:27]} 16. Ne4 {[%clk 0:01:52]}  Bd5 {[%clk 0:02:03]} 17. Nc5 {[%clk 0:01:52]}  Qc7 {[%clk 0:02:02]} 18. Rfe1 {[%clk 0:01:52]}  e5 {[%clk 0:01:57]} 19. Ne4 {[%clk 0:01:41]}  Bxe4 {[%clk 0:01:47]} 20. Rxe4 {[%clk 0:01:42]}  exd4 {[%clk 0:01:46]} 21. Rxe8+ {[%clk 0:01:33]}  Rxe8 {[%clk 0:01:45]} 22. cxd4 {[%clk 0:01:34]}  Nd5 {[%clk 0:01:42]} 23. Qg3 {[%clk 0:01:13]}  Qxg3 {[%clk 0:01:37]} 24. hxg3 {[%clk 0:01:14]}  Nc3 {[%clk 0:01:38]} 25. Rf1 {[%clk 0:01:14]}  Ne2+ {[%clk 0:01:36]} 26. Kh2 {[%clk 0:01:13]}  Nxd4 {[%clk 0:01:37]} 27. Rd1 {[%clk 0:01:11]}  c5 {[%clk 0:01:29]} 28. Bc4 {[%clk 0:01:08]}  b5 {[%clk 0:01:22]} 29. Bd3 {[%clk 0:01:08]}  c4 {[%clk 0:01:20]} 30. Bf1 {[%clk 0:01:00]}  Nxc2 {[%clk 0:01:21]} 31. Rd7 {[%clk 0:01:00]}  h6 {[%clk 0:01:13]} 32. Be7 {[%clk 0:00:56]}  Nd4 {[%clk 0:01:08]} 33. Bc5 {[%clk 0:00:51]}  Nc6 {[%clk 0:01:02]} 34. Rc7 {[%clk 0:00:49]}  Nd4 {[%clk 0:00:49]} 35. Bxa7 {[%clk 0:00:44]}  Re1 {[%clk 0:00:49]} 36. Bxd4 {[%clk 0:00:14]}  Bxd4 {[%clk 0:00:48]} 37. Kg1 {[%clk 0:00:14]}  c3 {[%clk 0:00:48]} 38. Rc8+ {[%clk 0:00:12]}  Kg7 {[%clk 0:00:47]} 39. Rc7 {[%clk 0:00:13]}  Ra1 {[%clk 0:00:43]} 40. Rd7 {[%clk 0:00:12]} 0-1


[Site "https://www.chess.com"]

[Event "Titled Tuesday Blitz May 2 Early 2023"]
[White "Omelja, Artem"]
[Black "Filgueira, Hernan"]
[WhiteFideId "14119846"]
[BlackFideId "101770"]
[WhiteElo "2404"]
[BlackElo "2363"]
[Result "1/2-1/2"]
[Round "09"]
[TimeControl "180+2"]
[Date "2023.05.02"]
[WhiteClock "0:01:49"]
[BlackClock "0:01:46"]

1. e4 {[%clk 0:03:00]}  c5 {[%clk 0:02:59]} 2. Nf3 {[%clk 0:02:58]}  e6 {[%clk 0:02:58]} 3. d3 {[%clk 0:02:54]}  Nc6 {[%clk 0:02:57]} 4. g3 {[%clk 0:02:52]}  d6 {[%clk 0:02:57]} 5. Bg2 {[%clk 0:02:51]}  g6 {[%clk 0:02:57]} 6. O-O {[%clk 0:02:51]}  Bg7 {[%clk 0:02:57]} 7. Nc3 {[%clk 0:02:52]}  Nge7 {[%clk 0:02:56]} 8. Be3 {[%clk 0:02:52]}  Nd4 {[%clk 0:02:54]} 9. Qd2 {[%clk 0:02:48]}  h6 {[%clk 0:02:45]} 10. Rab1 {[%clk 0:02:37]}  e5 {[%clk 0:02:39]} 11. Nd5 {[%clk 0:02:20]}  Nxf3+ {[%clk 0:02:20]} 12. Bxf3 {[%clk 0:02:20]}  Nxd5 {[%clk 0:02:15]} 13. exd5 {[%clk 0:02:19]}  h5 {[%clk 0:02:15]} 14. h4 {[%clk 0:02:12]}  a5 {[%clk 0:02:10]} 15. c3 {[%clk 0:02:09]}  O-O {[%clk 0:02:09]} 16. b4 {[%clk 0:02:05]}  axb4 {[%clk 0:02:06]} 17. cxb4 {[%clk 0:02:05]}  b6 {[%clk 0:02:06]} 18. Bg2 {[%clk 0:01:57]}  Bf5 {[%clk 0:01:57]} 19. Be4 {[%clk 0:01:50]}  Bh3 {[%clk 0:01:53]} 20. Bg2 {[%clk 0:01:50]}  Bf5 {[%clk 0:01:48]} 21. Be4 {[%clk 0:01:50]}  Bh3 {[%clk 0:01:48]} 22. Bg2 {[%clk 0:01:49]}  Bf5 {[%clk 0:01:46]} 1/2-1/2


[Site "https://www.chess.com"]

[Event "Titled Tuesday Blitz May 2 Early 2023"]
[White "Nemec, Jachym"]
[Black "Djokic, Mihailo"]
[WhiteFideId "23716525"]
[BlackFideId "976440"]
[WhiteElo "2305"]
[BlackElo "2294"]
[Result "0-1"]
[Round "09"]
[TimeControl "180+2"]
[Date "2023.05.02"]
[WhiteClock "0:01:19"]
[BlackClock "0:00:13"]

1. d4 {[%clk 0:03:00]}  Nf6 {[%clk 0:02:59]} 2. c4 {[%clk 0:03:01]}  g6 {[%clk 0:02:57]} 3. Nc3 {[%clk 0:03:01]}  Bg7 {[%clk 0:02:58]} 4. e4 {[%clk 0:03:01]}  O-O {[%clk 0:02:58]} 5. Be2 {[%clk 0:03:01]}  d6 {[%clk 0:02:58]} 6. h4 {[%clk 0:03:02]}  Na6 {[%clk 0:02:58]} 7. h5 {[%clk 0:02:59]}  e5 {[%clk 0:02:58]} 8. d5 {[%clk 0:02:55]}  Nc5 {[%clk 0:02:58]} 9. h6 {[%clk 0:02:55]}  Bh8 {[%clk 0:02:57]} 10. Qc2 {[%clk 0:02:56]}  a5 {[%clk 0:02:57]} 11. Nh3 {[%clk 0:02:54]}  a4 {[%clk 0:02:53]} 12. Be3 {[%clk 0:02:52]}  Bd7 {[%clk 0:02:50]} 13. Bxc5 {[%clk 0:02:50]}  dxc5 {[%clk 0:02:49]} 14. O-O-O {[%clk 0:02:51]}  Qe7 {[%clk 0:02:44]} 15. a3 {[%clk 0:02:49]}  Ne8 {[%clk 0:02:23]} 16. f3 {[%clk 0:02:44]}  f5 {[%clk 0:01:58]} 17. Kb1 {[%clk 0:02:42]}  Nd6 {[%clk 0:01:53]} 18. Nf2 {[%clk 0:02:41]}  Bf6 {[%clk 0:01:52]} 19. g4 {[%clk 0:02:40]}  fxg4 {[%clk 0:01:49]} 20. Nxg4 {[%clk 0:02:32]}  Bg5 {[%clk 0:01:49]} 21. Ka2 {[%clk 0:02:28]}  Bxg4 {[%clk 0:01:46]} 22. fxg4 {[%clk 0:02:28]}  Rf2 {[%clk 0:01:47]} 23. Rde1 {[%clk 0:02:23]}  Qd7 {[%clk 0:01:42]} 24. Qd3 {[%clk 0:02:21]}  Raf8 {[%clk 0:01:27]} 25. Qd1 {[%clk 0:02:19]}  Rg2 {[%clk 0:01:20]} 26. Qxa4 {[%clk 0:01:56]}  Qxa4 {[%clk 0:01:18]} 27. Nxa4 {[%clk 0:01:56]}  Nxe4 {[%clk 0:01:17]} 28. Bd3 {[%clk 0:01:53]}  Nf2 {[%clk 0:01:13]} 29. Nxc5 {[%clk 0:01:53]}  Nxh1 {[%clk 0:00:51]} 30. Be4 {[%clk 0:01:49]}  Rh2 {[%clk 0:00:38]} 31. Rxh1 {[%clk 0:01:44]}  Rxh1 {[%clk 0:00:34]} 32. Bxh1 {[%clk 0:01:44]}  Bxh6 {[%clk 0:00:35]} 33. Ne6 {[%clk 0:01:44]}  Rf2 {[%clk 0:00:25]} 34. c5 {[%clk 0:01:43]}  Be3 {[%clk 0:00:18]} 35. d6 {[%clk 0:01:42]}  cxd6 {[%clk 0:00:18]} 36. cxd6 {[%clk 0:01:41]}  Rd2 {[%clk 0:00:18]} 37. Bxb7 {[%clk 0:01:20]}  Rxd6 {[%clk 0:00:15]} 38. b4 {[%clk 0:01:20]}  Rxe6 {[%clk 0:00:14]} 39. Bd5 {[%clk 0:01:19]}  Kf7 {[%clk 0:00:15]} 40. a4 {[%clk 0:01:20]}  Bd2 {[%clk 0:00:14]} 41. b5 {[%clk 0:01:20]}  Ba5 {[%clk 0:00:13]} 42. Kb3 {[%clk 0:01:19]}  Ke7 {[%clk 0:00:13]} 0-1


[Site "https://www.chess.com"]